[Event "Titled Tuesday Blitz March 08 Late 2022"]
[White "Antonio, Jorge Carlos"]
[Black "Yeshchenko, Uliana"]
[WhiteFideId "113190"]
[BlackFideId "14187272"]
[WhiteElo "2247"]
[BlackElo "1881"]
[Result "1-0"]
[Round "04"]
[TimeControl "180+1"]
[Date "2022.03.09"]
[WhiteClock "0:01:00"]
[BlackClock "0:01:13"]

1. e4 {[%clk 0:03:00]}  c5 {[%clk 0:02:57]} 2. c3 {[%clk 0:02:59]}  d5 {[%clk 0:02:56]} 3. exd5 {[%clk 0:02:58]}  Qxd5 {[%clk 0:02:57]} 4. d4 {[%clk 0:02:59]}  Nf6 {[%clk 0:02:56]} 5. Nf3 {[%clk 0:02:52]}  Nc6 {[%clk 0:02:56]} 6. Be3 {[%clk 0:02:52]}  Bg4 {[%clk 0:02:52]} 7. dxc5 {[%clk 0:02:49]}  Qxd1+ {[%clk 0:02:51]} 8. Kxd1 {[%clk 0:02:47]}  e5 {[%clk 0:02:52]} 9. Kc1 {[%clk 0:02:40]}  a5 {[%clk 0:02:40]} 10. Bb5 {[%clk 0:02:36]}  Bxf3 {[%clk 0:02:39]} 11. gxf3 {[%clk 0:02:33]}  Nd7 {[%clk 0:02:39]} 12. b4 {[%clk 0:02:19]}  axb4 {[%clk 0:02:37]} 13. Bxc6 {[%clk 0:02:16]}  bxc6 {[%clk 0:02:38]} 14. cxb4 {[%clk 0:02:16]}  f5 {[%clk 0:02:19]} 15. a3 {[%clk 0:02:12]}  Nf6 {[%clk 0:02:13]} 16. Kc2 {[%clk 0:02:09]}  Nd5 {[%clk 0:02:13]} 17. Nc3 {[%clk 0:02:06]}  Kd7 {[%clk 0:02:04]} 18. Rhd1 {[%clk 0:02:02]}  Ke6 {[%clk 0:02:02]} 19. Nxd5 {[%clk 0:01:59]}  cxd5 {[%clk 0:02:03]} 20. Kb3 {[%clk 0:01:49]}  d4 {[%clk 0:02:01]} 21. Bd2 {[%clk 0:01:48]}  Be7 {[%clk 0:02:01]} 22. Re1 {[%clk 0:01:40]}  Kd5 {[%clk 0:01:58]} 23. a4 {[%clk 0:01:33]}  Rhb8 {[%clk 0:01:57]} 24. c6 {[%clk 0:01:26]}  Bd6 {[%clk 0:01:39]} 25. b5 {[%clk 0:01:23]}  Rb6 {[%clk 0:01:35]} 26. Bb4 {[%clk 0:01:17]}  Rc8 {[%clk 0:01:22]} 27. Bxd6 {[%clk 0:01:14]}  Kxd6 {[%clk 0:01:23]} 28. Rac1 {[%clk 0:01:08]}  Ra8 {[%clk 0:01:18]} 29. Kb4 {[%clk 0:01:08]}  Rab8 {[%clk 0:01:14]} 30. c7 {[%clk 0:01:05]}  Rc8 {[%clk 0:01:13]} 31. a5 {[%clk 0:01:04]}  Rb7 {[%clk 0:01:12]} 32. b6 {[%clk 0:01:03]}  d3 {[%clk 0:01:12]} 33. Red1 {[%clk 0:01:00]}  e4 {[%clk 0:01:12]} 34. fxe4 {[%clk 0:01:00]}  fxe4 {[%clk 0:01:13]} 35. Kb5 {[%clk 0:01:00]} 1-0


[Site "https://www.chess.com"]

[Event "Titled Tuesday Blitz March 08 Late 2022"]
[White "Arnold, Ken"]
[Black "Petrovic, Aleksa"]
[WhiteFideId "2056836"]
[BlackFideId "967629"]
[WhiteElo "2304"]
[BlackElo "2497"]
[Result "0-1"]
[Round "04"]
[TimeControl "180+1"]
[Date "2022.03.09"]
[WhiteClock "0:00:22"]
[BlackClock "0:00:10"]

1. d4 {[%clk 0:03:00]}  g6 {[%clk 0:02:57]} 2. c4 {[%clk 0:03:01]}  Bg7 {[%clk 0:02:57]} 3. Nf3 {[%clk 0:03:01]}  d6 {[%clk 0:02:57]} 4. Nc3 {[%clk 0:03:02]}  Nf6 {[%clk 0:02:55]} 5. Bf4 {[%clk 0:03:02]}  O-O {[%clk 0:02:55]} 6. e3 {[%clk 0:03:02]}  Nc6 {[%clk 0:02:52]} 7. h3 {[%clk 0:03:01]}  Nd7 {[%clk 0:02:52]} 8. Bh2 {[%clk 0:03:01]}  e5 {[%clk 0:02:51]} 9. dxe5 {[%clk 0:03:00]}  dxe5 {[%clk 0:02:47]} 10. Be2 {[%clk 0:02:59]}  h6 {[%clk 0:02:46]} 11. O-O {[%clk 0:02:57]}  Kh7 {[%clk 0:02:47]} 12. a3 {[%clk 0:02:56]}  f5 {[%clk 0:02:37]} 13. Rc1 {[%clk 0:02:54]}  Rf6 {[%clk 0:02:31]} 14. Nd5 {[%clk 0:02:53]}  Rd6 {[%clk 0:02:17]} 15. c5 {[%clk 0:02:44]}  Re6 {[%clk 0:01:59]} 16. Qc2 {[%clk 0:02:37]}  e4 {[%clk 0:01:56]} 17. Nxc7 {[%clk 0:02:22]}  exf3 {[%clk 0:01:40]} 18. Bxf3 {[%clk 0:02:03]}  Nde5 {[%clk 0:01:30]} 19. Nxa8 {[%clk 0:01:42]}  Nxf3+ {[%clk 0:01:09]} 20. gxf3 {[%clk 0:01:40]}  Qg5+ {[%clk 0:00:55]} 21. Kh1 {[%clk 0:01:33]}  Qh5 {[%clk 0:00:53]} 22. Qd1 {[%clk 0:01:15]}  Qxh3 {[%clk 0:00:44]} 23. Rg1 {[%clk 0:00:46]}  f4 {[%clk 0:00:24]} 24. Qf1 {[%clk 0:00:38]}  Qh5 {[%clk 0:00:18]} 25. Nc7 {[%clk 0:00:28]}  Rf6 {[%clk 0:00:11]} 26. Nd5 {[%clk 0:00:25]}  Qxd5 {[%clk 0:00:10]} 27. e4 {[%clk 0:00:24]}  Qh5 {[%clk 0:00:10]} 28. Qg2 {[%clk 0:00:22]}  Bh3 {[%clk 0:00:10]} 0-1


[Site "https://www.chess.com"]

[Event "Titled Tuesday Blitz March 08 Late 2022"]
[White "Babazada, Khazar"]
[Black "Caruana, Fabiano"]
[WhiteFideId "13413554"]
[BlackFideId "2020009"]
[WhiteElo "2418"]
[BlackElo "2744"]
[Result "0-1"]
[Round "04"]
[TimeControl "180+1"]
[Date "2022.03.08"]
[WhiteClock "0:00:14"]
[BlackClock "0:00:22"]

1. e4 {[%clk 0:03:00]}  e5 {[%clk 0:02:58]} 2. Nf3 {[%clk 0:03:01]}  Nc6 {[%clk 0:02:59]} 3. Bb5 {[%clk 0:03:00]}  a6 {[%clk 0:02:59]} 4. Bxc6 {[%clk 0:03:00]}  dxc6 {[%clk 0:02:59]} 5. O-O {[%clk 0:03:00]}  Qf6 {[%clk 0:02:58]} 6. d3 {[%clk 0:02:47]}  Ne7 {[%clk 0:02:48]} 7. Bg5 {[%clk 0:02:37]}  Qd6 {[%clk 0:02:39]} 8. Nbd2 {[%clk 0:02:36]}  Ng6 {[%clk 0:02:31]} 9. Be3 {[%clk 0:02:27]}  Be7 {[%clk 0:02:26]} 10. a3 {[%clk 0:02:23]}  O-O {[%clk 0:02:21]} 11. b4 {[%clk 0:02:23]}  b6 {[%clk 0:02:19]} 12. h3 {[%clk 0:02:07]}  Be6 {[%clk 0:02:17]} 13. g4 {[%clk 0:02:01]}  a5 {[%clk 0:02:11]} 14. Rb1 {[%clk 0:01:47]}  axb4 {[%clk 0:02:10]} 15. axb4 {[%clk 0:01:47]}  Ra2 {[%clk 0:02:01]} 16. Ng5 {[%clk 0:01:15]}  Bxg5 {[%clk 0:01:39]} 17. Bxg5 {[%clk 0:01:16]}  Rfa8 {[%clk 0:01:37]} 18. Nf3 {[%clk 0:01:08]}  h6 {[%clk 0:01:22]} 19. Be3 {[%clk 0:01:08]}  R8a4 {[%clk 0:01:13]} 20. Qd2 {[%clk 0:01:07]}  Qe7 {[%clk 0:01:08]} 21. Qc3 {[%clk 0:01:04]}  Bd7 {[%clk 0:00:53]} 22. Rfd1 {[%clk 0:00:44]}  R4a3 {[%clk 0:00:51]} 23. Qd2 {[%clk 0:00:42]}  Be6 {[%clk 0:00:51]} 24. d4 {[%clk 0:00:37]}  Nh4 {[%clk 0:00:35]} 25. Nxe5 {[%clk 0:00:35]}  f6 {[%clk 0:00:34]} 26. Nxc6 {[%clk 0:00:27]}  Qe8 {[%clk 0:00:34]} 27. Qe2 {[%clk 0:00:26]}  Bf7 {[%clk 0:00:23]} 28. d5 {[%clk 0:00:14]}  Qxe4 {[%clk 0:00:23]} 29. Rd4 {[%clk 0:00:14]}  Nf3+ {[%clk 0:00:22]} 0-1


[Site "https://www.chess.com"]

[Event "Titled Tuesday Blitz March 08 Late 2022"]
[White "Bluebaum, Matthias"]
[Black "Martinez Reyes, Pedro Ramon"]
[WhiteFideId "24651516"]
[BlackFideId "3901807"]
[WhiteElo "2833"]
[BlackElo "2447"]
[Result "1-0"]
[Round "04"]
[TimeControl "180+1"]
[Date "2022.03.09"]
[WhiteClock "0:00:19"]
[BlackClock "0:00:03"]

1. b3 {[%clk 0:03:00]}  Nf6 {[%clk 0:02:55]} 2. Bb2 {[%clk 0:03:01]}  g6 {[%clk 0:02:56]} 3. Nf3 {[%clk 0:03:01]}  Bg7 {[%clk 0:02:56]} 4. g3 {[%clk 0:03:02]}  O-O {[%clk 0:02:57]} 5. Bg2 {[%clk 0:03:02]}  b6 {[%clk 0:02:58]} 6. O-O {[%clk 0:03:02]}  Bb7 {[%clk 0:02:58]} 7. c4 {[%clk 0:03:03]}  c5 {[%clk 0:02:58]} 8. d4 {[%clk 0:03:03]}  cxd4 {[%clk 0:02:59]} 9. Qxd4 {[%clk 0:03:04]}  Na6 {[%clk 0:02:58]} 10. Rd1 {[%clk 0:03:04]}  d6 {[%clk 0:02:58]} 11. Ne1 {[%clk 0:03:04]}  Qc7 {[%clk 0:02:56]} 12. Nc3 {[%clk 0:03:02]}  Bxg2 {[%clk 0:02:55]} 13. Nxg2 {[%clk 0:03:03]}  Nb4 {[%clk 0:02:54]} 14. Rac1 {[%clk 0:02:58]}  Qb7 {[%clk 0:02:47]} 15. Qd2 {[%clk 0:02:54]}  a6 {[%clk 0:02:46]} 16. Nf4 {[%clk 0:02:47]}  Rfc8 {[%clk 0:02:44]} 17. a3 {[%clk 0:02:44]}  Nc6 {[%clk 0:02:44]} 18. Ncd5 {[%clk 0:02:44]}  Nxd5 {[%clk 0:02:43]} 19. Nxd5 {[%clk 0:02:45]}  Bxb2 {[%clk 0:02:25]} 20. Qxb2 {[%clk 0:02:46]}  Na5 {[%clk 0:02:25]} 21. Rd3 {[%clk 0:02:20]}  Ra7 {[%clk 0:02:25]} 22. Re3 {[%clk 0:02:16]}  Nc6 {[%clk 0:02:13]} 23. h4 {[%clk 0:02:06]}  h5 {[%clk 0:02:08]} 24. Rd1 {[%clk 0:01:52]}  Rb8 {[%clk 0:02:03]} 25. b4 {[%clk 0:01:46]}  b5 {[%clk 0:01:39]} 26. c5 {[%clk 0:01:45]}  dxc5 {[%clk 0:01:36]} 27. bxc5 {[%clk 0:01:46]}  Qc8 {[%clk 0:01:35]} 28. Red3 {[%clk 0:01:31]}  Qf5 {[%clk 0:01:24]} 29. Nb4 {[%clk 0:00:59]}  Ne5 {[%clk 0:00:45]} 30. Rd8+ {[%clk 0:00:55]}  Rxd8 {[%clk 0:00:45]} 31. Rxd8+ {[%clk 0:00:56]}  Kh7 {[%clk 0:00:46]} 32. c6 {[%clk 0:00:40]}  Qf6 {[%clk 0:00:41]} 33. Kg2 {[%clk 0:00:20]}  a5 {[%clk 0:00:32]} 34. Nd5 {[%clk 0:00:20]}  Qf5 {[%clk 0:00:23]} 35. c7 {[%clk 0:00:18]}  Rxc7 {[%clk 0:00:03]} 36. Nxc7 {[%clk 0:00:19]}  Qe4+ {[%clk 0:00:03]} 37. f3 {[%clk 0:00:20]}  Qe3 {[%clk 0:00:03]} 38. Nd5 {[%clk 0:00:19]} 1-0


[Site "https://www.chess.com"]

[Event "Titled Tuesday Blitz March 08 Late 2022"]
[White "Brunner, Nicolas"]
[Black "Erdogdu, Mert"]
[WhiteFideId "620246"]
[BlackFideId "6301495"]
[WhiteElo "2448"]
[BlackElo "2695"]
[Result "0-1"]
[Round "04"]
[TimeControl "180+1"]
[Date "2022.03.09"]
[WhiteClock "0:00:02"]
[BlackClock "0:00:11"]

1. d4 {[%clk 0:03:00]}  d5 {[%clk 0:03:00]} 2. c4 {[%clk 0:02:59]}  e6 {[%clk 0:03:00]} 3. Nf3 {[%clk 0:02:59]}  c5 {[%clk 0:03:01]} 4. cxd5 {[%clk 0:02:57]}  exd5 {[%clk 0:03:02]} 5. Nc3 {[%clk 0:02:57]}  Nc6 {[%clk 0:03:02]} 6. g3 {[%clk 0:02:57]}  Nf6 {[%clk 0:03:02]} 7. Bg2 {[%clk 0:02:57]}  Be7 {[%clk 0:03:03]} 8. O-O {[%clk 0:02:56]}  O-O {[%clk 0:03:03]} 9. Bg5 {[%clk 0:02:56]}  cxd4 {[%clk 0:03:03]} 10. Nxd4 {[%clk 0:02:56]}  h6 {[%clk 0:03:04]} 11. Be3 {[%clk 0:02:56]}  Re8 {[%clk 0:03:04]} 12. Rc1 {[%clk 0:02:55]}  Bg4 {[%clk 0:03:04]} 13. h3 {[%clk 0:02:54]}  Be6 {[%clk 0:03:04]} 14. Na4 {[%clk 0:02:53]}  Rc8 {[%clk 0:03:00]} 15. Nxc6 {[%clk 0:02:48]}  bxc6 {[%clk 0:02:59]} 16. Bxa7 {[%clk 0:02:39]}  Qd7 {[%clk 0:01:14]} 17. Bc5 {[%clk 0:02:38]}  Bd8 {[%clk 0:01:11]} 18. Kh2 {[%clk 0:02:34]}  Rb8 {[%clk 0:01:11]} 19. b3 {[%clk 0:02:32]}  h5 {[%clk 0:01:09]} 20. Bd4 {[%clk 0:02:26]}  h4 {[%clk 0:01:07]} 21. Nc5 {[%clk 0:02:15]}  Qd6 {[%clk 0:00:59]} 22. Nd3 {[%clk 0:01:54]}  Bf5 {[%clk 0:00:53]} 23. Bc5 {[%clk 0:01:16]}  Qc7 {[%clk 0:00:45]} 24. Bf3 {[%clk 0:00:32]}  Ne4 {[%clk 0:00:43]} 25. Rg1 {[%clk 0:00:22]}  Ng5 {[%clk 0:00:25]} 26. Bg4 {[%clk 0:00:17]}  Bxg4 {[%clk 0:00:20]} 27. hxg4 {[%clk 0:00:18]}  Re4 {[%clk 0:00:18]} 28. f3 {[%clk 0:00:16]}  Re6 {[%clk 0:00:14]} 29. Qd2 {[%clk 0:00:14]}  Rh6 {[%clk 0:00:14]} 30. Nf4 {[%clk 0:00:10]}  hxg3+ {[%clk 0:00:13]} 31. Kxg3 {[%clk 0:00:11]}  Nh3 {[%clk 0:00:12]} 32. Rh1 {[%clk 0:00:10]}  Bg5 {[%clk 0:00:12]} 33. Rxh3 {[%clk 0:00:08]}  Bxf4+ {[%clk 0:00:10]} 34. Qxf4 {[%clk 0:00:04]}  Rxh3+ {[%clk 0:00:10]} 35. Kxh3 {[%clk 0:00:04]}  Qxf4 {[%clk 0:00:11]} 36. Bf2 {[%clk 0:00:02]} 0-1


[Site "https://www.chess.com"]

[Event "Titled Tuesday Blitz March 08 Late 2022"]
[White "Bryakin, Mikhail"]
[Black "Dounis, Alexandros"]
[WhiteFideId "4165314"]
[BlackFideId "4213238"]
[WhiteElo "2417"]
[BlackElo "2204"]
[Result "1/2-1/2"]
[Round "04"]
[TimeControl "180+1"]
[Date "2022.03.08"]
[WhiteClock "0:00:04"]
[BlackClock "0:00:10"]

1. e4 {[%clk 0:02:53]}  e5 {[%clk 0:02:59]} 2. d4 {[%clk 0:02:49]}  exd4 {[%clk 0:02:59]} 3. Qxd4 {[%clk 0:02:50]}  Nc6 {[%clk 0:02:59]} 4. Qd3 {[%clk 0:02:47]}  f5 {[%clk 0:02:49]} 5. exf5 {[%clk 0:02:41]}  Nf6 {[%clk 0:02:49]} 6. Nc3 {[%clk 0:02:40]}  Bb4 {[%clk 0:02:41]} 7. Bd2 {[%clk 0:02:39]}  O-O {[%clk 0:02:41]} 8. O-O-O {[%clk 0:02:39]}  d5 {[%clk 0:02:42]} 9. a3 {[%clk 0:02:38]}  Bc5 {[%clk 0:02:35]} 10. f3 {[%clk 0:02:27]}  Ne5 {[%clk 0:02:26]} 11. Qb5 {[%clk 0:02:24]}  Qd6 {[%clk 0:02:21]} 12. g4 {[%clk 0:02:18]}  Bd7 {[%clk 0:02:17]} 13. Qe2 {[%clk 0:02:14]}  Rfe8 {[%clk 0:02:16]} 14. Qg2 {[%clk 0:02:12]}  d4 {[%clk 0:02:09]} 15. Nb1 {[%clk 0:02:10]}  Bc6 {[%clk 0:02:05]} 16. h3 {[%clk 0:02:08]}  Qd5 {[%clk 0:01:57]} 17. Ne2 {[%clk 0:01:49]}  Nxf3 {[%clk 0:01:53]} 18. Nf4 {[%clk 0:01:40]}  Qa2 {[%clk 0:01:50]} 19. Bd3 {[%clk 0:01:28]}  Ne1 {[%clk 0:01:37]} 20. Qf2 {[%clk 0:01:18]}  Nxd3+ {[%clk 0:01:30]} 21. cxd3 {[%clk 0:01:18]}  Bxh1 {[%clk 0:01:26]} 22. Rxh1 {[%clk 0:01:19]}  Bd6 {[%clk 0:01:25]} 23. Ne6 {[%clk 0:01:05]}  Rxe6 {[%clk 0:01:24]} 24. fxe6 {[%clk 0:00:43]}  Qd5 {[%clk 0:01:24]} 25. Re1 {[%clk 0:00:41]}  Re8 {[%clk 0:01:24]} 26. Qf5 {[%clk 0:00:30]}  Qc6+ {[%clk 0:01:19]} 27. Kd1 {[%clk 0:00:30]}  Qa4+ {[%clk 0:01:15]} 28. Kc1 {[%clk 0:00:29]}  Qc6+ {[%clk 0:00:53]} 29. Kd1 {[%clk 0:00:29]}  Qa4+ {[%clk 0:00:46]} 30. Ke2 {[%clk 0:00:24]}  Qb3 {[%clk 0:00:42]} 31. Kf1 {[%clk 0:00:20]}  Rf8 {[%clk 0:00:39]} 32. Kg2 {[%clk 0:00:19]}  Be7 {[%clk 0:00:36]} 33. g5 {[%clk 0:00:12]}  Nd5 {[%clk 0:00:36]} 34. Qe4 {[%clk 0:00:12]}  Ne3+ {[%clk 0:00:30]} 35. Bxe3 {[%clk 0:00:08]}  dxe3 {[%clk 0:00:30]} 36. Qxe3 {[%clk 0:00:09]}  Qd5+ {[%clk 0:00:18]} 37. Qe4 {[%clk 0:00:07]}  Qxg5+ {[%clk 0:00:18]} 38. Qg4 {[%clk 0:00:07]}  Qd5+ {[%clk 0:00:17]} 39. Qe4 {[%clk 0:00:06]}  Qg5+ {[%clk 0:00:12]} 40. Qg4 {[%clk 0:00:06]}  Qf6 {[%clk 0:00:13]} 41. Qe2 {[%clk 0:00:04]}  Qg5+ {[%clk 0:00:10]} 42. Qg4 {[%clk 0:00:04]} 1/2-1/2


[Site "https://www.chess.com"]

[Event "Titled Tuesday Blitz March 08 Late 2022"]
[White "Butti, Enrique"]
[Black "Goltseva, Ekaterina"]
[WhiteFideId "3700470"]
[BlackFideId "24173770"]
[WhiteElo "1753"]
[BlackElo "2623"]
[Result "0-1"]
[Round "04"]
[TimeControl "180+1"]
[Date "2022.03.09"]
[WhiteClock "0:00:03"]
[BlackClock "0:00:03"]

1. Nf3 {[%clk 0:02:23]}  Nf6 {[%clk 0:02:59]} 2. c4 {[%clk 0:02:21]}  e6 {[%clk 0:02:59]} 3. d4 {[%clk 0:02:19]}  d5 {[%clk 0:02:59]} 4. e3 {[%clk 0:02:17]}  dxc4 {[%clk 0:02:54]} 5. Bxc4 {[%clk 0:02:16]}  a6 {[%clk 0:02:53]} 6. O-O {[%clk 0:02:13]}  b5 {[%clk 0:02:53]} 7. Bd3 {[%clk 0:02:13]}  Bb7 {[%clk 0:02:53]} 8. a4 {[%clk 0:02:12]}  b4 {[%clk 0:02:51]} 9. Nbd2 {[%clk 0:02:11]}  Nbd7 {[%clk 0:02:46]} 10. Nc4 {[%clk 0:02:09]}  c5 {[%clk 0:02:41]} 11. b3 {[%clk 0:02:07]}  Be7 {[%clk 0:02:39]} 12. a5 {[%clk 0:02:00]}  O-O {[%clk 0:02:36]} 13. Bb2 {[%clk 0:01:58]}  Nd5 {[%clk 0:02:33]} 14. Nfe5 {[%clk 0:01:55]}  N7f6 {[%clk 0:02:21]} 15. f4 {[%clk 0:01:50]}  Nc3 {[%clk 0:02:14]} 16. Bxc3 {[%clk 0:01:49]}  bxc3 {[%clk 0:02:14]} 17. Kh1 {[%clk 0:01:45]}  cxd4 {[%clk 0:02:08]} 18. exd4 {[%clk 0:01:44]}  Kh8 {[%clk 0:02:06]} 19. Bc2 {[%clk 0:01:43]}  Qd5 {[%clk 0:01:53]} 20. Ne3 {[%clk 0:01:39]}  Qd6 {[%clk 0:01:27]} 21. Qd3 {[%clk 0:01:33]}  Rad8 {[%clk 0:01:20]} 22. Rad1 {[%clk 0:01:24]}  Be4 {[%clk 0:01:18]} 23. Qxc3 {[%clk 0:01:22]}  Qb4 {[%clk 0:01:05]} 24. Qb2 {[%clk 0:01:15]}  Bxc2 {[%clk 0:00:25]} 25. Nxc2 {[%clk 0:01:12]}  Qb5 {[%clk 0:00:25]} 26. b4 {[%clk 0:01:00]}  Nd5 {[%clk 0:00:24]} 27. f5 {[%clk 0:00:57]}  f6 {[%clk 0:00:20]} 28. Nd3 {[%clk 0:00:48]}  exf5 {[%clk 0:00:19]} 29. Rxf5 {[%clk 0:00:46]}  Qc4 {[%clk 0:00:20]} 30. Nf4 {[%clk 0:00:35]}  Nc3 {[%clk 0:00:17]} 31. Rd3 {[%clk 0:00:31]}  Ne4 {[%clk 0:00:12]} 32. Rf3 {[%clk 0:00:23]}  Rc8 {[%clk 0:00:08]} 33. Ne3 {[%clk 0:00:20]}  Bxb4 {[%clk 0:00:06]} 34. Nxc4 {[%clk 0:00:19]}  Rxc4 {[%clk 0:00:05]} 35. h4 {[%clk 0:00:17]}  Bc3 {[%clk 0:00:04]} 36. Qb3 {[%clk 0:00:16]}  Rfc8 {[%clk 0:00:04]} 37. h5 {[%clk 0:00:15]}  Bxd4 {[%clk 0:00:04]} 38. Ng6+ {[%clk 0:00:12]}  hxg6 {[%clk 0:00:03]} 39. hxg6 {[%clk 0:00:07]}  Rc1+ {[%clk 0:00:03]} 40. Kh2 {[%clk 0:00:07]}  Bg1+ {[%clk 0:00:03]} 41. Kh3 {[%clk 0:00:06]}  Ng5+ {[%clk 0:00:03]} 42. Rxg5 {[%clk 0:00:05]}  fxg5 {[%clk 0:00:03]} 43. Qf7 {[%clk 0:00:03]}  Bc5 {[%clk 0:00:03]} 0-1


[Site "https://www.chess.com"]

[Event "Titled Tuesday Blitz March 08 Late 2022"]
[White "Derraugh, Geordie"]
[Black "Karttunen, Mika"]
[WhiteFideId "2603950"]
[BlackFideId "502081"]
[WhiteElo "2436"]
[BlackElo "2675"]
[Result "1-0"]
[Round "04"]
[TimeControl "180+1"]
[Date "2022.03.09"]
[WhiteClock "0:01:12"]
[BlackClock "0:00:15"]

1. e4 {[%clk 0:03:00]}  c5 {[%clk 0:02:59]} 2. c3 {[%clk 0:03:00]}  d5 {[%clk 0:02:58]} 3. exd5 {[%clk 0:03:00]}  Qxd5 {[%clk 0:02:59]} 4. Nf3 {[%clk 0:03:00]}  Nc6 {[%clk 0:02:59]} 5. d4 {[%clk 0:03:00]}  Bg4 {[%clk 0:02:59]} 6. Be2 {[%clk 0:03:00]}  cxd4 {[%clk 0:02:51]} 7. cxd4 {[%clk 0:02:52]}  e6 {[%clk 0:02:51]} 8. O-O {[%clk 0:02:51]}  Nf6 {[%clk 0:02:51]} 9. Nc3 {[%clk 0:02:51]}  Qa5 {[%clk 0:02:51]} 10. Be3 {[%clk 0:02:51]}  Bd6 {[%clk 0:02:50]} 11. Qb3 {[%clk 0:02:49]}  O-O {[%clk 0:02:50]} 12. Qxb7 {[%clk 0:02:48]}  Ne7 {[%clk 0:02:50]} 13. Qb3 {[%clk 0:02:46]}  Rab8 {[%clk 0:02:42]} 14. Qc2 {[%clk 0:02:45]}  Rfc8 {[%clk 0:02:38]} 15. Rac1 {[%clk 0:02:40]}  Ned5 {[%clk 0:02:17]} 16. Qd2 {[%clk 0:02:40]}  Nxe3 {[%clk 0:02:12]} 17. fxe3 {[%clk 0:02:40]}  Bb4 {[%clk 0:01:53]} 18. Bd3 {[%clk 0:02:30]}  Bxf3 {[%clk 0:01:40]} 19. Rxf3 {[%clk 0:02:27]}  Nd5 {[%clk 0:01:39]} 20. Qf2 {[%clk 0:02:25]}  Bxc3 {[%clk 0:01:32]} 21. bxc3 {[%clk 0:02:22]}  Rxc3 {[%clk 0:01:32]} 22. Rxc3 {[%clk 0:02:17]}  Qxc3 {[%clk 0:01:32]} 23. e4 {[%clk 0:02:13]}  Qa1+ {[%clk 0:01:22]} 24. Bf1 {[%clk 0:02:10]}  Nf6 {[%clk 0:01:09]} 25. Rxf6 {[%clk 0:01:59]}  Rb2 {[%clk 0:01:01]} 26. Qg3 {[%clk 0:01:55]}  Rb1 {[%clk 0:00:50]} 27. Rf2 {[%clk 0:01:51]}  Qxd4 {[%clk 0:00:48]} 28. Qf3 {[%clk 0:01:40]}  f6 {[%clk 0:00:32]} 29. g3 {[%clk 0:01:40]}  h5 {[%clk 0:00:26]} 30. Kg2 {[%clk 0:01:39]}  h4 {[%clk 0:00:27]} 31. gxh4 {[%clk 0:01:39]}  a5 {[%clk 0:00:20]} 32. Qd3 {[%clk 0:01:37]}  Qb6 {[%clk 0:00:19]} 33. e5 {[%clk 0:01:32]}  f5 {[%clk 0:00:19]} 34. Qd6 {[%clk 0:01:30]}  Qb7+ {[%clk 0:00:19]} 35. Kg1 {[%clk 0:01:25]}  Kf7 {[%clk 0:00:19]} 36. Rd2 {[%clk 0:01:20]}  Qa7+ {[%clk 0:00:17]} 37. Qd4 {[%clk 0:01:17]}  Qa6 {[%clk 0:00:17]} 38. Qd7+ {[%clk 0:01:16]}  Kg6 {[%clk 0:00:17]} 39. Rg2+ {[%clk 0:01:13]}  Kh5 {[%clk 0:00:17]} 40. Qf7+ {[%clk 0:01:13]}  Kxh4 {[%clk 0:00:16]} 41. Qe7+ {[%clk 0:01:12]}  Kh3 {[%clk 0:00:15]} 42. Rg3# {[%clk 0:01:12]} 1-0


[Site "https://www.chess.com"]